bitfinex/quotes_ETHUSD_20260228
["timestamp","ask_amount","ask_price","bid_price","bid_amount"]
[1772267224933,1.855,1860.7,1860.1,3.82490057]
[1772267225324,5.16981914,1860.9,1860.2,5.16884208]
[1772267225498,5.16981914,1860.9,1860.3,3.82380057]
[1772267225499,7.02481914,1860.9,1860.3,3.82380057]
[1772267225894,3.82734266,1861.1,1860.3,3.82380057]
[1772267226119,1.855,1861.0,1860.3,3.82380057]
[1772267226628,5.17067958,1861.1,1860.3,3.82380057]
[1772267226629,0.001,1861.1,1860.3,3.82380057]
[1772267227637,0.001,1861.1,1860.5,3.82380057]
[1772267229735,0.001,1861.1,1860.6,1.34365258]
[1772267231042,0.001,1861.1,1860.6,4.93146382]
[1772267231429,0.001,1861.1,1860.7,3.58781124]
[1772267231811,0.001,1861.1,1860.8,1.34350816]
[1772267233041,0.001,1861.1,1860.8,4.9313194]
[1772267233737,0.001,1861.1,1860.4,3.58781124]
[1772267233738,5.11565368,1860.9,1860.4,3.58781124]
[1772267233906,5.11565368,1860.9,1860.2,3.58891124]
[1772267234111,5.11565368,1860.9,1860.2,4.93283566]
[1772267235317,3.77221771,1860.8,1860.2,4.93284194]
[1772267236535,5.11577586,1860.8,1860.2,4.93284194]
[1772267237052,5.11677586,1860.8,1860.2,4.93284194]
[1772267237411,0.001,1860.8,1860.3,3.58781124]
[1772267238540,0.001,1860.8,1860.4,4.93160827]
[1772267239045,0.001,1860.8,1860.4,3.58781124]
[1772267239744,3.77321771,1860.8,1860.3,1.34384932]
[1772267240443,3.77221771,1860.6,1860.2,0.0011]
[1772267241641,0.001,1860.8,1860.2,3.58891124]
[1772267241845,1.34451094,1860.8,1860.2,3.58891124]
[1772267242252,5.11672865,1860.8,1860.2,3.58891124]
[1772267242449,3.77221771,1860.6,1860.2,0.0011]
[1772267242614,10.6360923,1860.8,1860.2,3.58891124]
[1772267242615,1.34358168,1860.7,1860.2,3.58891124]
[1772267242819,3.77321771,1860.8,1860.2,3.58891124]
[1772267242820,6.97178332,1860.8,1860.2,3.58891124]
[1772267243953,5.11678332,1860.8,1860.2,3.58891124]
[1772267244152,3.77221771,1860.7,1860.2,0.0011]
[1772267244522,5.11587029,1860.6,1860.2,0.0011]
[1772267245343,1.857,1860.8,1860.2,3.58891124]
[1772267245514,3.20051319,1860.8,1860.2,3.58891124]
[1772267248147,3.20051319,1860.8,1860.3,4.9316805]
[1772267248550,0.001,1861.1,1860.3,4.9316805]
[1772267248551,0.001,1861.1,1860.4,3.58781124]
[1772267248753,0.001,1861.1,1860.7,3.58781124]
[1772267248954,0.001,1861.1,1860.5,3.58781124]
[1772267250147,0.001,1861.1,1860.6,4.93146382]
[1772267252269,0.001,1861.1,1860.7,3.58781124]
[1772267254971,0.001,1861.1,1860.7,4.93138653]
[1772267255902,3.77321771,1861.1,1860.5,3.58781124]
[1772267256040,3.77321771,1861.1,1860.4,3.58781124]
[1772267256246,5.11558149,1861.0,1860.5,1.3437248]
[1772267256979,3.77221771,1860.9,1860.4,3.58781124]
[1772267257683,3.77221771,1860.9,1860.4,4.93160477]
[1772267257849,3.77221771,1860.9,1860.4,3.58781124]
[1772267259171,5.11571535,1860.9,1860.4,3.58781124]
[1772267259370,3.77221771,1860.9,1860.4,4.93159936]
[1772267259675,1.34433972,1861.1,1860.5,3.58781124]
[1772267260046,1.34433972,1861.1,1860.5,3.58891124]
[1772267260378,0.001,1861.0,1860.5,3.58891124]
[1772267261448,0.001,1861.0,1860.6,1.34365258]
[1772267262148,0.001,1861.0,1860.6,4.99503107]
[1772267269007,3.62435443,1861.0,1860.5,3.65247849]
[1772267272978,3.62435443,1861.0,1860.6,4.99613107]
[1772267273184,0.001,1860.9,1860.6,4.99613107]
[1772267274071,4.37517027,1860.7,1860.6,0.0011]
[1772267274380,4.37617027,1860.9,1860.6,0.0011]
[1772267274953,4.96779693,1860.9,1860.6,0.0011]
[1772267275165,3.62435443,1860.9,1860.6,3.65247849]
[1772267277494,4.37617027,1860.9,1860.6,3.65247849]
[1772267278386,3.62435443,1860.9,1860.6,4.99612285]
[1772267278584,3.62435443,1860.9,1860.6,3.65247849]
[1772267280990,3.62335443,1860.8,1860.6,0.0011]
[1772267281860,0.001,1860.9,1860.6,3.65247849]
[1772267282406,5.48435443,1861.6,1860.7,4.40319433]
[1772267282566,3.62335443,1861.8,1861.3,3.65137849]
[1772267282770,4.37517027,1862.0,1861.5,3.65137849]
[1772267283075,0.75181584,1861.9,1861.5,3.65137849]
[1772267283506,0.75181584,1861.7,1861.4,5.28437849]
[1772267283797,4.37517027,1862.0,1861.5,3.65137849]
[1772267284876,5.71781932,1862.0,1861.5,3.65137849]
[1772267285282,0.001,1861.9,1861.5,3.65137849]
[1772267285678,0.75281584,1861.9,1861.5,3.65137849]
[1772267286071,0.75181584,1861.6,1861.0,3.65137849]
[1772267286384,0.001,1861.9,1861.4,3.65137849]
[1772267287390,0.001,1861.9,1861.5,4.40319433]
[1772267287811,3.62335443,1862.1,1861.7,3.65137849]
[1772267288401,0.75181584,1861.8,1861.4,5.28437849]
[1772267288601,1.34251999,1862.2,1861.1,1.633]
[1772267288602,0.75181584,1861.6,1861.1,1.633]
[1772267288829,0.75181584,1861.6,1861.1,2.97628686]
[1772267289037,4.37517027,1861.6,1861.1,1.633]
[1772267289259,6.76634256,1861.8,1860.8,3.65137849]
[1772267289260,0.75181584,1861.2,1860.8,3.65137849]
[1772267289541,3.62335443,1861.8,1860.9,0.75181584]
[1772267289714,5.71824021,1861.5,1861.0,3.65137849]
[1772267290142,13.24573427,1861.8,1861.1,6.03719433]
[1772267290143,5.717971,1861.8,1861.1,6.03719433]
[1772267290340,5.717971,1861.8,1861.2,3.65137849]
[1772267291242,0.75181584,1861.6,1861.1,1.634]
[1772267291402,0.75181584,1861.6,1861.1,4.91949138]
[1772267291603,0.75181584,1861.6,1861.2,3.28549138]
[1772267291845,2.09480538,1861.6,1861.1,1.634]
[1772267292151,0.75181584,1861.4,1861.1,1.634]
[1772267292703,0.75181584,1861.2,1861.1,1.634]
[1772267292946,0.75181584,1861.4,1861.1,1.634]
[1772267293936,2.09492672,1861.4,1860.8,2.97747537]
[1772267294143,0.75181584,1861.2,1860.8,2.97747537]
[1772267294843,0.75181584,1861.2,1860.7,4.62901324]
[1772267295203,4.06373986,1861.2,1860.7,3.28549138]
[1772267295827,0.75181584,1860.8,1860.6,1.6361]
[1772267296061,5.40714172,1861.0,1860.6,1.6361]
[1772267297326,5.40714172,1861.0,1860.8,0.0011]
[1772267297845,4.06373986,1861.0,1860.8,0.0011]
[1772267298355,0.75181584,1861.2,1860.8,0.0011]
[1772267298535,2.09489865,1861.4,1860.8,3.28659138]
[1772267298722,5.40682267,1861.4,1860.8,3.28659138]
[1772267301159,5.40682267,1861.4,1860.8,4.6300839]
[1772267302331,0.75181584,1861.2,1860.8,3.28659138]
[1772267303336,3.31192402,1861.1,1860.8,0.0011]
[1772267303538,3.31192402,1861.1,1860.7,0.0011]
[1772267309633,4.65523023,1861.1,1860.7,0.0011]
[1772267309960,1.34330621,1861.1,1860.7,0.0011]
[1772267310141,1.34330621,1861.1,1860.7,3.28659138]
[1772267310355,1.34330621,1861.1,1860.8,0.0011]
[1772267315192,5.40701157,1861.2,1860.8,0.0011]
[1772267315888,5.40701157,1861.2,1860.8,3.28659138]
[1772267315889,4.06373986,1861.2,1860.8,3.28659138]
[1772267316099,3.31192402,1861.1,1860.8,0.0011]
[1772267316551,1.34383179,1861.8,1861.0,3.28549138]
[1772267316755,3.31192402,1861.7,1861.2,3.28549138]
[1772267317071,4.06373986,1861.7,1861.2,3.28549138]
[1772267317278,4.65485483,1861.6,1861.2,3.28549138]
[1772267320686,3.4039841,1861.5,1861.0,4.65235606]
[1772267320885,3.4039841,1861.5,1861.0,4.65240617]
[1772267321384,3.4039841,1861.5,1861.1,3.30904823]
[1772267321569,4.74698951,1861.5,1861.1,3.30904823]
[1772267322091,3.4039841,1861.3,1860.9,3.30904823]
[1772267322264,3.4039841,1861.3,1860.8,1.34459867]
[1772267322655,3.4039841,1861.3,1860.9,3.41037938]
[1772267323689,4.74718855,1861.3,1860.9,3.41147938]
[1772267324788,1.34320445,1861.3,1860.9,3.41147938]
[1772267325293,3.40734449,1861.1,1860.9,0.0011]
[1772267328221,3.40734449,1860.8,1860.1,3.41147938]
[1772267328494,3.40734449,1860.8,1860.4,3.41147938]
[1772267328893,3.40734449,1860.8,1860.4,0.0011]
[1772267329124,3.40734449,1860.5,1860.3,0.0011]
[1772267330997,4.75108013,1860.5,1860.3,0.0011]
[1772267331378,3.40734449,1860.7,1860.3,0.0011]
[1772267331583,3.40734449,1860.7,1860.3,3.41147938]
[1772267333172,4.75092753,1860.7,1860.3,3.41147938]
[1772267333503,4.7509256,1860.7,1860.3,3.41147938]
[1772267334273,3.40734449,1860.9,1860.3,4.75534574]
[1772267334491,6.62883212,1860.9,1860.3,4.75534574]
[1772267334874,4.75083212,1860.9,1860.3,4.75534574]
[1772267335373,3.40734449,1860.8,1860.4,3.41037938]
[1772267336594,3.40734449,1860.8,1860.4,3.41147938]
[1772267336999,0.001,1860.6,1860.4,3.41147938]
[1772267338099,0.001,1860.6,1860.4,4.75527596]
[1772267339007,0.001,1860.6,1860.4,3.41147938]
[1772267340508,0.001,1860.6,1860.4,0.0011]
[1772267342611,0.001,1860.6,1860.4,4.75527454]
[1772267343008,1.34339769,1861.0,1860.5,3.41037938]
[1772267343310,4.75074218,1861.0,1860.5,3.41037938]
[1772267343697,3.40734449,1860.9,1860.5,3.41037938]
[1772267344524,3.40734449,1860.8,1860.4,0.0011]
[1772267344685,3.40734449,1860.7,1860.4,0.0011]
[1772267346818,3.40734449,1860.5,1860.4,0.0011]
[1772267348107,4.75085728,1860.8,1860.4,3.41147938]
[1772267348302,4.75085728,1860.8,1860.6,0.0011]
[1772267348601,3.40734449,1860.7,1860.6,0.0011]
[1772267349681,4.75092486,1860.7,1860.6,0.0011]
[1772267349887,3.40734449,1860.6,1860.4,0.0011]
[1772267352488,0.001,1860.8,1860.4,3.3144586]
[1772267352686,0.001,1860.8,1860.5,3.3133586]
[1772267353688,4.47212406,1861.2,1860.6,3.3133586]
[1772267354295,3.12888406,1861.1,1860.6,3.3133586]
[1772267355095,3.12888406,1861.3,1860.7,3.3133586]
[1772267355295,4.47203948,1861.3,1860.7,3.3133586]
[1772267355598,3.12888406,1861.3,1860.7,3.3133586]
[1772267355812,3.12888406,1861.3,1860.9,3.3133586]
[1772267356016,0.001,1861.4,1860.9,3.3133586]
[1772267356394,3.12888406,1861.1,1860.7,4.65688225]
[1772267356717,3.12888406,1861.3,1860.8,3.3133586]
[1772267357994,4.47203528,1861.3,1860.8,4.6568383]
[1772267359619,3.12888406,1861.3,1860.8,4.6568383]
[1772267359802,0.001,1861.4,1861.1,3.3133586]
[1772267360007,0.001,1861.4,1861.0,4.65672238]
[1772267360797,0.001,1861.2,1861.0,4.65672238]
[1772267361322,0.001,1861.2,1861.1,3.3133586]
[1772267361899,0.001,1861.2,1861.1,4.6566502]
[1772267362928,0.001,1861.2,1861.1,3.3133586]
[1772267363142,0.001,1861.2,1861.0,1.34335936]
[1772267363310,4.25588315,1861.1,1860.7,3.3133586]
[1772267363640,3.12888406,1861.1,1860.7,4.65692335]
[1772267363839,3.12888406,1861.1,1860.7,3.3133586]
[1772267364053,1.34336378,1861.0,1860.6,0.0011]
[1772267364338,3.12888406,1860.9,1860.6,0.0011]
[1772267366715,4.47218716,1861.1,1860.6,0.0011]
[1772267367409,3.12888406,1861.1,1860.6,0.0011]
[1772267367611,4.47218535,1861.1,1860.6,0.0011]
[1772267367823,3.12888406,1861.1,1860.6,0.0011]
[1772267368050,4.47218274,1861.1,1860.6,0.0011]
[1772267368250,3.12888406,1861.0,1860.6,0.0011]
[1772267368416,1.885,1860.9,1860.1,0.0011]
[1772267368615,3.12888406,1860.8,1860.1,0.0011]
[1772267369137,3.12888406,1860.8,1860.1,1.3451124]
[1772267369333,3.12888406,1860.8,1860.1,3.3144586]
[1772267369846,3.12888406,1860.7,1860.1,3.3144586]
[1772267370514,4.47253664,1860.6,1860.1,3.3144586]
[1772267372745,4.47253664,1860.6,1860.2,0.0011]
[1772267375129,4.47253728,1860.6,1860.2,0.0011]
[1772267377831,3.12888406,1860.5,1860.2,0.0011]
[1772267378944,1.34373693,1860.5,1860.2,3.3144586]
[1772267379247,4.47250658,1860.7,1860.2,3.3144586]
[1772267382049,3.40925923,1860.6,1860.2,0.0011]
[1772267383343,1.3437248,1860.5,1860.2,0.0011]
[1772267383543,4.75298403,1860.5,1860.2,0.0011]
[1772267383823,3.40925923,1860.4,1860.2,0.0011]
[1772267384551,3.40925923,1860.4,1860.3,0.0011]
[1772267385256,4.16164253,1860.4,1860.3,0.0011]
[1772267387538,5.50543956,1860.4,1860.3,0.0011]
[1772267388757,5.50543956,1860.4,1860.2,0.0011]
[1772267389552,3.40925923,1860.3,1860.2,0.0011]
[1772267389756,4.75312849,1860.3,1860.2,0.0011]
[1772267389929,4.16164253,1860.2,1859.9,0.0011]
[1772267390636,4.16164253,1860.0,1859.8,0.0011]
[1772267390941,4.16164253,1860.0,1859.7,1.6511]
[1772267391855,3.40925923,1859.9,1859.7,1.6511]
[1772267393359,3.40925923,1859.9,1859.7,0.0011]
[1772267393935,4.7534517,1859.9,1859.7,0.0011]
[1772267394145,3.40925923,1859.9,1859.7,0.0011]
[1772267394743,4.75342004,1859.9,1859.7,0.0011]
[1772267394942,3.40925923,1859.9,1859.7,0.0011]
[1772267395460,3.40925923,1860.0,1859.7,3.32659908]
[1772267396243,4.753383,1860.0,1859.8,0.0011]
[1772267396683,3.40925923,1859.9,1859.5,3.32659908]
[1772267396850,3.40925923,1859.7,1859.5,0.0011]
[1772267398334,1.34437513,1859.6,1859.5,0.0011]
[1772267399566,5.50601766,1859.6,1859.5,0.0011]
[1772267399761,5.50601766,1859.6,1858.7,0.0011]
[1772267399762,4.16164253,1859.4,1859.0,3.32549908]
[1772267400064,4.16164253,1859.4,1858.9,0.0011]
[1772267400273,0.7523833,1859.2,1858.9,0.0011]
[1772267400661,3.40925923,1859.2,1858.9,0.0011]
[1772267400880,5.50621351,1859.4,1858.9,3.32659908]
[1772267401054,3.40925923,1859.3,1858.9,3.32659908]
[1772267401694,6.66343312,1859.9,1859.1,3.32549908]
[1772267401840,3.40925923,1860.1,1859.2,3.32549908]
[1772267402044,3.40925923,1860.1,1858.9,0.0011]
[1772267402045,3.40925923,1859.4,1858.9,0.0011]
[1772267402240,3.76638889,1859.5,1859.0,3.32549908]
[1772267402241,3.40925923,1859.5,1859.0,3.32549908]
[1772267402472,3.40925923,1859.4,1858.9,0.0011]
[1772267403175,5.31925923,1859.4,1858.9,1.3459813]
[1772267403367,5.31925923,1859.4,1858.9,3.32659908]
[1772267403870,3.40925923,1859.3,1858.9,0.0011]
[1772267404445,3.40925923,1859.5,1858.9,3.32659908]
[1772267404672,4.75371938,1859.5,1858.9,3.32659908]
[1772267404969,3.40925923,1859.4,1858.9,3.32659908]
[1772267406444,4.68088157,1859.4,1858.9,4.6714725]
[1772267406957,3.33634005,1859.4,1858.9,4.6714725]
[1772267407864,3.33634005,1859.4,1859.0,3.32659908]
[1772267408081,5.32025923,1859.6,1859.0,3.32659908]
[1772267408278,0.001,1859.4,1859.0,3.32659908]
[1772267408473,0.001,1859.4,1859.1,1.3447367]
[1772267408799,3.41025923,1859.4,1859.0,0.0011]
[1772267408959,3.40925923,1859.2,1858.9,0.0011]
[1772267409160,3.40925923,1859.1,1858.7,0.0011]
[1772267410586,4.61082114,1859.0,1858.7,0.0011]
[1772267410771,6.52082114,1859.0,1858.7,0.0011]
[1772267410972,3.26601211,1858.9,1858.7,0.0011]
[1772267412786,1.34490837,1858.9,1858.7,0.0011]
[1772267412982,3.26601211,1858.8,1858.7,0.0011]
[1772267413493,3.25890837,1858.9,1858.7,0.0011]
[1772267413694,1.34490837,1858.9,1858.7,0.0011]
[1772267413868,3.26601211,1859.2,1858.7,3.24378955]
[1772267414364,0.001,1859.4,1858.7,3.24378955]
[1772267414669,0.001,1859.4,1858.9,3.24268955]
[1772267414871,3.26601211,1859.9,1858.9,4.88868955]
[1772267415104,3.76638889,1860.2,1859.1,3.24268955]
[1772267415105,6.52399876,1860.2,1859.1,3.24268955]
[1772267415390,0.28101999,1859.9,1859.3,3.24268955]
[1772267415691,3.26601211,1860.1,1859.3,3.24268955]
[1772267416897,1.34408602,1860.0,1859.4,1.34451973]
[1772267417963,1.34408602,1860.0,1859.4,4.58720928]
[1772267418495,4.61008089,1860.1,1859.4,4.58720928]
[1772267419596,6.52408089,1860.1,1859.4,4.58720928]
[1772267419818,1.914,1860.2,1859.5,3.24268955]
[1772267420101,4.61088841,1860.3,1859.5,3.24268955]
[1772267420585,0.001,1860.0,1859.5,3.24268955]
[1772267421295,0.001,1860.0,1859.6,1.34437513]
[1772267421465,0.001,1860.0,1859.7,3.24268955]
[1772267421663,0.001,1860.0,1859.6,1.34437513]
[1772267421879,0.001,1860.0,1859.5,4.587083]
[1772267422477,3.26701211,1860.0,1859.4,1.3444731]
[1772267423479,4.61112559,1860.0,1859.4,3.24268955]
[1772267424895,3.25711348,1860.0,1859.2,3.24268955]
[1772267425209,8.37748711,1860.0,1859.2,3.24268955]
[1772267425380,1.34437513,1859.6,1859.2,3.24268955]
[1772267425699,1.34427607,1859.8,1859.2,4.58735269]
[1772267426745,1.34508652,1860.0,1859.3,3.24268955]
[1772267427090,0.001,1860.0,1859.3,3.24268955]
[1772267427604,0.001,1860.0,1859.4,4.58720928]
[1772267427804,0.001,1860.0,1859.5,3.24268955]
[1772267428303,3.26601211,1859.9,1859.2,3.24268955]
[1772267429795,1.34423056,1859.8,1859.3,1.34459205]
[1772267429990,4.6102236,1859.9,1859.3,1.34459205]
[1772267430198,4.61017618,1859.9,1859.4,3.24268955]
[1772267431271,0.001,1860.0,1859.4,3.24268955]
[1772267431714,0.001,1860.0,1859.6,3.24268955]
[1772267432412,0.001,1860.3,1859.7,3.24268955]
[1772267432576,1.34487107,1860.3,1859.7,3.24268955]
[1772267432905,0.001,1860.3,1859.7,3.24268955]
[1772267433108,1.34486979,1860.3,1859.7,3.24268955]
[1772267433799,3.26601211,1860.1,1859.5,4.89178955]
[1772267433999,3.76638889,1860.2,1859.5,4.89178955]
[1772267434000,3.26601211,1859.9,1859.5,0.0011]
[1772267435199,0.001,1860.3,1859.5,0.0011]
[1772267435200,3.26601211,1859.7,1859.5,0.0011]
[1772267435716,4.61035524,1859.7,1859.5,0.0011]
[1772267435884,4.61031679,1859.7,1859.5,0.0011]
[1772267436491,3.26601211,1859.7,1859.5,0.0011]
[1772267436692,4.61031756,1859.7,1859.5,0.0011]
[1772267437215,4.61032144,1859.7,1859.5,0.0011]
[1772267437595,3.25629312,1859.8,1859.5,0.0011]
[1772267438333,1.34398595,1860.2,1859.5,3.24378955]
[1772267439820,0.001,1860.3,1859.5,3.24378955]
[1772267439993,0.001,1860.3,1859.7,3.24268955]
[1772267443227,0.001,1860.3,1859.7,4.58699208]
[1772267444116,0.001,1860.3,1859.6,1.34432457]
[1772267444117,3.20371262,1860.3,1859.6,1.34432457]
[1772267444523,3.20371262,1860.3,1859.6,4.54321169]
[1772267444904,1.34394151,1860.2,1859.6,4.54431169]
[1772267445130,1.34394151,1860.2,1859.7,3.19888712]
[1772267445131,1.34494151,1860.2,1859.7,3.19888712]
[1772267445330,0.001,1860.2,1859.7,3.19888712]
[1772267447012,0.001,1860.2,1859.8,4.54311768]
[1772267448647,0.001,1860.2,1859.8,1.34423056]
[1772267448815,0.001,1860.2,1859.9,3.19888712]
[1772267449011,0.001,1860.2,1859.9,4.5429837]
[1772267449530,0.001,1860.2,1860.0,3.19888712]
[1772267449735,0.001,1860.6,1860.1,3.19888712]
[1772267451113,0.001,1860.6,1860.2,4.54282863]
[1772267452137,3.20371262,1860.6,1859.9,3.19888712]
[1772267453137,3.20271262,1860.4,1859.8,2.99221665]
[1772267454451,3.20271262,1860.4,1859.8,6.19110377]
[1772267455430,0.001,1860.6,1859.9,3.19888712]
[1772267457444,0.001,1860.6,1860.1,3.11785728]
[1772267457952,0.001,1860.5,1860.1,3.11785728]
[1772267459827,0.001,1860.5,1860.2,4.46179879]
[1772267460262,1.6251595,1861.2,1860.4,3.11785728]
[1772267460549,3.2357741,1861.1,1860.4,3.11785728]
[1772267460751,3.2347741,1861.0,1860.2,6.11379879]
[1772267460953,3.2357741,1861.0,1860.2,6.11379879]
[1772267461351,3.2357741,1861.0,1860.2,4.76985728]
[1772267461950,3.2347741,1860.8,1860.2,6.1137458]
[1772267463523,3.2347741,1860.6,1860.0,1.34518184]
[1772267463724,1.3437248,1860.5,1860.0,0.0011]
[1772267463925,1.3447248,1860.5,1860.0,0.0011]
[1772267464152,0.001,1860.5,1860.0,0.0011]
[1772267467257,0.001,1860.5,1860.0,3.11895728]
[1772267468335,0.001,1860.5,1860.1,1.34401376]
[1772267469565,0.001,1860.5,1860.2,3.11785728]
[1772267469761,3.2347741,1861.0,1860.3,3.11785728]
[1772267470068,4.5791406,1861.0,1860.3,3.11785728]
[1772267470564,4.5791406,1861.0,1860.4,4.39006731]
[1772267470936,0.001,1861.0,1860.5,3.04627028]
[1772267471129,0.001,1860.7,1860.5,3.04627028]
[1772267471633,0.001,1861.2,1860.5,3.04627028]
[1772267471852,0.001,1861.4,1860.7,3.04627028]
[1772267472189,3.14233521,1861.3,1860.6,4.70027028]
[1772267472346,0.001,1861.4,1860.8,4.38977844]
[1772267472550,0.001,1861.4,1860.9,3.04627028]
[1772267473580,0.001,1861.4,1861.0,1.654]
[1772267474463,0.001,1861.4,1861.1,3.04627028]
[1772267476590,0.001,1861.4,1861.2,1.34321942]
[1772267476805,3.14233521,1862.4,1861.3,3.04627028]
[1772267477027,3.14233521,1862.2,1861.5,3.04627028]
[1772267477308,3.14233521,1862.4,1861.6,3.04627028]
[1772267477876,5.36826738,1862.8,1861.8,3.04627028]
[1772267477877,3.14233521,1862.7,1861.8,3.04627028]
[1772267478171,3.14233521,1862.6,1861.9,1.657]
[1772267478385,3.14233521,1862.6,1861.8,0.871]
[1772267478590,3.14233521,1862.6,1861.8,3.91727028]
[1772267478799,3.14233521,1862.6,1861.9,4.38898471]
[1772267478800,4.48458401,1862.6,1861.9,4.38898471]
[1772267478969,4.48458401,1862.6,1862.0,3.04627028]
[1772267479170,3.14233521,1862.5,1861.9,1.34271443]
[1772267479473,3.14233521,1862.5,1861.8,2.21378437]
[1772267480172,3.14233521,1862.5,1861.8,5.26005465]
[1772267480367,3.14233521,1862.5,1861.8,3.91727028]
[1772267480596,3.14233521,1862.5,1861.8,0.871]
[1772267480798,3.14233521,1862.3,1861.8,0.871]
[1772267482215,4.48465884,1862.5,1861.9,3.04627028]
[1772267483021,4.48465884,1862.5,1861.9,4.38897638]
[1772267483196,4.48461717,1862.5,1861.9,4.38897638]
[1772267483395,3.14233521,1862.4,1861.8,2.21378395]
[1772267483706,1.89,1862.8,1861.8,2.21378395]
[1772267483707,3.14233521,1862.8,1861.9,3.04627028]
[1772267484109,0.001,1862.4,1861.9,3.04627028]
[1772267484989,0.001,1862.4,1862.1,3.04627028]
[1772267485400,0.001,1862.4,1862.2,1.655]
[1772267486311,3.14333521,1862.4,1861.7,4.70227028]
[1772267486478,3.14333521,1862.4,1861.8,3.04627028]
[1772267487004,3.14233521,1863.1,1862.1,3.04627028]
[1772267487202,3.14233521,1863.1,1861.8,1.34276532]
[1772267487203,3.14233521,1863.0,1862.3,8.3135312]
[1772267487385,3.14233521,1863.0,1862.3,4.70227028]
[1772267487586,3.14233521,1863.7,1862.8,3.04627028]
[1772267487913,3.14233521,1863.7,1862.7,4.70227028]
[1772267488877,3.14233521,1863.7,1862.7,1.656]
[1772267489077,3.14233521,1863.5,1862.7,1.656]
[1772267489280,3.14233521,1863.5,1862.7,4.70227028]
[1772267489507,8.40959613,1862.9,1862.1,3.04627028]
[1772267489802,3.14233521,1862.8,1862.1,3.04627028]
[1772267490006,3.14233521,1862.8,1861.8,1.654]
[1772267490007,3.14233521,1862.5,1861.8,3.04627028]
[1772267491184,1.34235395,1862.4,1861.8,3.04627028]
[1772267492217,1.34235395,1862.4,1861.6,6.04319021]
[1772267492378,4.48468916,1862.4,1861.6,6.04319021]
[1772267492812,4.48468916,1862.4,1861.6,4.70027028]
[1772267493216,4.48468916,1862.4,1861.6,6.04319421]
[1772267493814,4.48468916,1862.4,1861.7,3.04627028]
[1772267495990,1.34235395,1862.4,1861.8,3.04627028]
[1772267496805,1.34235395,1862.4,1861.8,3.04737028]
[1772267497007,0.001,1862.3,1861.8,3.04737028]
[1772267497497,1.34249812,1862.2,1861.8,0.0011]
[1772267498117,3.14233521,1862.1,1861.8,0.0011]
[1772267498314,3.14233521,1862.1,1861.7,0.0011]
[1772267499420,3.14233521,1862.0,1861.5,2.91328806]
[1772267499596,1.34271443,1861.9,1861.5,2.91328806]
[1772267505726,5.37032591,1862.1,1861.6,2.97518115]
[1772267506116,1.34255666,1862.2,1861.7,2.97518115]
[1772267507429,1.3434777,1862.3,1861.8,2.97518115]
[1772267508023,0.001,1862.3,1861.8,2.97518115]
[1772267508237,3.08437367,1862.3,1861.7,1.652]
[1772267508527,3.08337367,1862.2,1861.7,1.652]
[1772267509037,3.08337367,1862.2,1861.7,4.62718115]
[1772267509837,0.001,1862.3,1861.5,2.91328806]
[1772267509838,3.75596465,1861.9,1861.5,2.91328806]
[1772267510203,1.34271443,1861.9,1861.5,2.91328806]
[1772267511804,8.45423139,1862.0,1861.5,2.91328806]
[1772267511805,1.34268204,1862.0,1861.5,5.88846921]
[1772267512317,5.37044068,1862.1,1861.5,2.91328806]
[1772267512318,3.08337367,1862.1,1861.5,2.91328806]
[1772267513655,3.08337367,1862.1,1861.5,2.82323003]
[1772267513827,3.75596465,1861.7,1861.4,0.0011]
[1772267514021,3.08337367,1861.8,1861.4,0.0011]
[1772267514344,1.34285867,1861.7,1861.4,0.0011]
[1772267517254,5.36999921,1862.2,1861.4,0.0011]
[1772267517255,4.42587179,1862.2,1861.4,2.97628115]
[1772267519531,3.75596465,1862.0,1861.4,2.97628115]
[1772267519743,3.08337367,1861.9,1861.4,0.0011]
[1772267520453,3.08337367,1862.1,1861.4,2.97628115]
[1772267521476,3.08337367,1861.9,1861.4,0.0011]
[1772267521762,3.08337367,1861.9,1860.7,4.62418115]
[1772267521763,3.08337367,1861.5,1860.7,4.62418115]
[1772267521937,3.08337367,1861.5,1860.8,2.97518115]
[1772267522133,1.903,1861.8,1860.7,1.649]
[1772267522134,3.75596465,1861.4,1860.7,1.649]
[1772267522335,3.08337367,1861.1,1860.4,2.97518115]
[1772267522539,3.08337367,1861.1,1860.1,3.88573155]
[1772267522540,6.83933832,1860.8,1860.1,0.0011]
[1772267522734,6.83933832,1860.8,1860.1,2.97628115]
[1772267523557,1.34358037,1860.7,1860.1,2.97628115]
[1772267524060,2.40313711,1860.7,1860.1,2.97628115]
[1772267524424,6.83933832,1860.6,1860.1,0.0011]
[1772267524630,3.75596465,1860.4,1860.0,0.0011]
[1772267526037,1.34386926,1860.3,1860.0,0.0011]
[1772267526727,1.34386926,1860.3,1859.9,0.0011]
[1772267526928,3.75596465,1860.2,1859.8,0.0011]
[1772267527370,3.75596465,1860.0,1859.7,0.0011]
[1772267527533,3.75596465,1859.8,1859.6,0.0011]
[1772267527727,3.75596465,1859.8,1859.5,0.0011]
[1772267527931,3.75596465,1859.8,1859.4,0.0011]
[1772267528133,1.34430284,1859.7,1859.4,0.0011]
[1772267528996,4.42767651,1859.7,1859.3,0.0011]
[1772267529341,3.08337367,1859.5,1859.2,0.0011]
[1772267530145,1.34451973,1859.4,1859.2,0.0011]
[1772267530346,1.34451973,1859.4,1858.9,0.0011]
[1772267530347,3.08337367,1859.3,1858.9,0.0011]
[1772267530666,6.87833698,1859.1,1858.7,0.0011]
[1772267531240,3.12237233,1859.0,1858.7,0.0011]
[1772267531436,3.75596465,1858.8,1858.7,0.0011]
[1772267531643,6.87833698,1858.8,1858.7,0.0011]
[1772267531909,6.87833698,1858.8,1858.2,0.0011]
[1772267532059,3.75596465,1858.1,1858.0,0.0011]
[1772267532268,3.12237233,1858.3,1858.0,0.0011]
[1772267532269,1.34536259,1858.3,1858.0,0.0011]
[1772267532569,1.34536259,1858.3,1857.6,3.11350386]
[1772267532869,7.01232724,1858.3,1857.6,3.11350386]
[1772267533042,10.13469957,1858.3,1857.4,1.34596444]
[1772267533367,0.84825477,1858.4,1857.9,3.11460386]
[1772267534071,0.84825477,1858.4,1858.3,0.0011]
[1772267535464,6.46526417,1860.1,1858.3,0.0011]
[1772267535465,2.87902677,1859.0,1858.3,3.11460386]
[1772267535847,0.96702677,1859.0,1858.3,3.11460386]
[1772267536074,0.84825477,1858.9,1858.3,3.11460386]
[1772267536364,0.96702677,1859.0,1858.4,4.45874707]
[1772267536570,0.96702677,1859.0,1858.2,2.49390367]
[1772267536571,3.75596465,1858.7,1858.2,1.34648308]